[Event "17th Spilimbergo Open 2019"]
[Site "Spilimbergo"]
[Date "2019.08.09"]
[Round "1.1"]
[White "Nisipeanu, Liviu-Dieter"]
[Black "Pasini, Nicolo"]
[Result "1-0"]
[WhiteElo "2666"]
[BlackElo "2247"]
[PlyCount "55"]
[EventDate "2019.08.09"]
[EventType "swiss"]
[EventCountry "ITA"]
[TimeControl "5400+30"]
[WhiteClock "0:07:51"]
[BlackClock "0:20:00"]

1. e4 {[%emt 0:00:30]} e5 {[%emt 0:00:30]} 2. Nf3 {[%emt 0:00:00]} Nf6 {[%emt 0:00:00]} 3. Nxe5 {[%emt 0:01:00]} d6 {[%emt 0:00:00]} 4. Nf3 {[%emt 0:00:00]} Nxe4 {[%emt 0:00:30]} 5. Bd3 {[%emt 0:02:00]} d5 {[%emt 0:00:00]} 6. O-O {[%emt 0:00:30]} Be7 {[%emt 0:01:00]} 7. Re1 {[%emt 0:01:30]} Nc5 {[%emt 0:09:30]} 8. Bf1 {[%emt 0:00:30]} O-O {[%emt 0:00:30]} 9. d4 {[%emt 0:00:30]} Ne4 {[%emt 0:00:30]} 10. c4 {[%emt 0:00:30]} Bb4 {[%emt 0:20:30]} 11. Re3 {[%emt 0:04:30]} c6 {[%emt 0:06:30]} 12. Nc3 {[%emt 0:02:30]} Nxc3 {[%emt 0:03:30]} 13. bxc3 {[%emt 0:00:30]} Bd6 {[%emt 0:01:30]} 14. Qb3 {[%emt 0:08:30]} b6 {[%emt 0:09:30]} 15. Ba3 {[%emt 0:07:30]} Ba6 {[%emt 0:04:30]} 16. Ne5 {[%emt 0:25:30]} Qc7 {[%emt 0:12:30]} 17. Bxd6 {[%emt 0:00:30]} Qxd6 {[%emt 0:00:30]} 18. Rae1 {[%emt 0:00:30]} Bc8 {[%emt 0:04:30]} 19. Qb4 {[%emt 0:19:30]} c5 {[%emt 0:03:30]} 20. dxc5 {[%emt 0:00:30]} bxc5 {[%emt 0:00:30]} 21. Qa3 {[%emt 0:00:30]} Be6 {[%emt 0:09:41]} 22. cxd5 {[%emt 0:00:30]} Qxd5 {[%emt 0:02:04]} 23. Bc4 {[%emt 0:04:39]} Qd6 {[%emt 0:00:08]} 24. Nxf7 {[%emt 0:00:18]} Bxf7 {[%emt 0:01:30]} 25. Bxf7+ {[%emt 0:00:04]} Rxf7 {[%emt 0:00:45]} 26. Re8+ {[%emt 0:00:08]} Rf8 {[%emt 0:00:55]} 27. Qb3+ {[%emt 0:00:21]} Kh8 {[%emt 0:00:36]} 28. Qd5 1-0

[Event "17th Spilimbergo Open 2019"]
[Site "Spilimbergo"]
[Date "2019.08.09"]
[Round "1.2"]
[White "Damia, Angelo"]
[Black "Saric, Ivan"]
[Result "1/2-1/2"]
[WhiteElo "2244"]
[BlackElo "2660"]
[PlyCount "120"]
[EventDate "2019.08.09"]
[EventType "swiss"]
[EventCountry "ITA"]
[TimeControl "5400+30"]
[WhiteClock "0:13:11"]
[BlackClock "0:02:50"]

1. e4 {[%emt 0:00:30]} c5 {[%emt 0:00:30]} 2. Nf3 {[%emt 0:00:00]} d6 {[%emt 0:00:00]} 3. d4 {[%emt 0:00:00]} cxd4 {[%emt 0:00:00]} 4. Nxd4 {[%emt 0:00:30]} Nf6 {[%emt 0:00:30]} 5. Nc3 {[%emt 0:00:30]} a6 {[%emt 0:00:00]} 6. Bg5 {[%emt 0:02:30]} Nc6 {[%emt 0:01:00]} 7. Qd2 {[%emt 0:01:30]} e6 {[%emt 0:00:00]} 8. O-O-O {[%emt 0:02:30]} Bd7 {[%emt 0:00:00]} 9. f4 {[%emt 0:02:30]} Be7 {[%emt 0:00:00]} 10. Kb1 {[%emt 0:09:30]} b5 {[%emt 0:04:00]} 11. Bxf6 {[%emt 0:04:30]} Bxf6 {[%emt 0:00:30]} 12. Nxc6 {[%emt 0:00:30]} Bxc6 {[%emt 0:00:00]} 13. Qxd6 {[%emt 0:01:30]} Qxd6 {[%emt 0:01:00]} 14. Rxd6 {[%emt 0:00:30]} Rc8 {[%emt 0:00:30]} 15. a4 {[%emt 0:02:30]} Bxc3 {[%emt 0:04:30]} 16. axb5 {[%emt 0:06:30]} Bxe4 {[%emt 0:03:30]} 17. bxc3 {[%emt 0:00:00]} Rxc3 {[%emt 0:02:30]} 18. Rd4 {[%emt 0:03:00]} Bg6 {[%emt 0:10:30]} 19. Rc4 {[%emt 0:05:30]} Rxc4 {[%emt 0:00:00]} 20. Bxc4 {[%emt 0:00:30]} axb5 {[%emt 0:00:00]} 21. Bxb5+ {[%emt 0:00:30]} Ke7 {[%emt 0:00:00]} 22. Kb2 {[%emt 0:02:30]} Rb8 {[%emt 0:15:00]} 23. c4 {[%emt 0:00:30]} Be4 {[%emt 0:00:30]} 24. Kc3 {[%emt 0:00:30]} Bxg2 {[%emt 0:03:30]} 25. Rg1 {[%emt 0:05:30]} Be4 {[%emt 0:00:30]} 26. Kd4 {[%emt 0:00:30]} Bg6 {[%emt 0:00:30]} 27. Ra1 {[%emt 0:01:30]} Rd8+ {[%emt 0:02:30]} 28. Kc3 {[%emt 0:03:30]} Rd3+ {[%emt 0:00:30]} 29. Kb4 {[%emt 0:00:00]} Rd2 {[%emt 0:07:30]} 30. Ra7+ {[%emt 0:04:00]} Kf6 {[%emt 0:00:30]} 31. c5 {[%emt 0:07:30]} Rb2+ {[%emt 0:11:30]} 32. Kc4 {[%emt 0:09:30]} e5 {[%emt 0:06:30]} 33. fxe5+ {[%emt 0:02:30]} Kxe5 {[%emt 0:00:30]} 34. c6 {[%emt 0:01:30]} Rxh2 {[%emt 0:00:30]} 35. Re7+ {[%emt 0:07:48]} Kf6 {[%emt 0:00:30]} 36. Re1 {[%emt 0:01:58]} Bf5 {[%emt 0:02:30]} 37. Kc5 {[%emt 0:00:23]} Rc2+ {[%emt 0:01:30]} 38. Kb6 {[%emt 0:01:50]} g6 {[%emt 0:01:30]} 39. c7 {[%emt 0:01:10]} Bc8 {[%emt 0:03:30]} 40. Re8 {[%emt 0:01:03]} Bg4 {[%emt 0:00:30]} 41. Re4 {[%emt 0:00:15]} h5 {[%emt 0:00:30]} 42. Rf4+ {[%emt 0:10:29]} Ke5 {[%emt 0:00:30]} 43. Rxf7 {[%emt 0:00:30]} h4 {[%emt 0:00:30]} 44. Bd3 {[%emt 0:00:54]} Rb2+ {[%emt 0:00:30]} 45. Kc5 {[%emt 0:00:15]} h3 {[%emt 0:00:30]} 46. Re7+ {[%emt 0:00:38]} Kf6 {[%emt 0:00:30]} 47. Re4 {[%emt 0:00:29]} Bc8 {[%emt 0:02:32]} 48. Re8 {[%emt 0:00:12]} Bb7 {[%emt 0:02:38]} 49. Be4 {[%emt 0:01:00]} Bxe4 {[%emt 0:05:06]} 50. Rxe4 {[%emt 0:00:07]} Rc2+ {[%emt 0:00:06]} 51. Rc4 {[%emt 0:00:21]} Rxc4+ {[%emt 0:00:05]} 52. Kxc4 {[%emt 0:00:06]} h2 {[%emt 0:00:05]} 53. c8=Q {[%emt 0:00:02]} h1=Q {[%emt 0:00:06]} 54. Qd8+ {[%emt 0:01:24]} Kf5 {[%emt 0:01:35]} 55. Qd7+ {[%emt 0:00:17]} Kf4 {[%emt 0:00:25]} 56. Qf7+ {[%emt 0:00:26]} Kg5 {[%emt 0:00:05]} 57. Qe7+ {[%emt 0:00:05]} Kg4 {[%emt 0:00:12]} 58. Qe6+ {[%emt 0:00:15]} Kh5 {[%emt 0:01:18]} 59. Qe5+ {[%emt 0:00:12]} Kg4 {[%emt 0:00:06]} 60. Qe6+ {[%emt 0:00:01]} Kg5 1/2-1/2

[Event "17th Spilimbergo Open 2019"]
[Site "Spilimbergo"]
[Date "2019.08.09"]
[Round "1.3"]
[White "Kovalev, Vladislav"]
[Black "Di Benedetto, Desiree"]
[Result "1-0"]
[WhiteElo "2651"]
[BlackElo "2243"]
[PlyCount "131"]
[EventDate "2019.08.09"]
[EventType "swiss"]
[EventCountry "ITA"]
[TimeControl "5400+30"]
[BlackClock "0:03:14"]

1. e4 {[%emt 0:00:30]} e6 {[%emt 0:00:30]} 2. d3 {[%emt 0:00:30]} d5 {[%emt 0:00:30]} 3. Nd2 {[%emt 0:00:00]} Nf6 {[%emt 0:01:30]} 4. e5 {[%emt 0:04:00]} Nfd7 {[%emt 0:00:00]} 5. f4 {[%emt 0:00:30]} c5 {[%emt 0:02:00]} 6. Ndf3 {[%emt 0:00:30]} Nc6 {[%emt 0:01:30]} 7. c3 {[%emt 0:02:30]} Qb6 {[%emt 0:05:30]} 8. g3 {[%emt 0:02:30]} Be7 {[%emt 0:07:30]} 9. Bg2 {[%emt 0:01:30]} O-O {[%emt 0:03:30]} 10. Ne2 {[%emt 0:01:30]} f6 {[%emt 0:03:30]} 11. d4 {[%emt 0:14:30]} cxd4 {[%emt 0:01:30]} 12. exf6 {[%emt 0:00:30]} Nxf6 {[%emt 0:02:30]} 13. Nexd4 {[%emt 0:00:30]} Nxd4 {[%emt 0:06:30]} 14. Nxd4 {[%emt 0:00:30]} Bd6 {[%emt 0:18:30]} 15. Qb3 {[%emt 0:02:30]} Qxb3 {[%emt 0:00:30]} 16. axb3 {[%emt 0:00:30]} Bd7 {[%emt 0:00:30]} 17. O-O {[%emt 0:00:30]} a6 {[%emt 0:09:30]} 18. b4 {[%emt 0:02:30]} e5 {[%emt 0:02:30]} 19. fxe5 {[%emt 0:00:00]} Bxe5 {[%emt 0:00:00]} 20. Be3 {[%emt 0:05:00]} Rae8 {[%emt 0:04:00]} 21. Rfe1 {[%emt 0:00:30]} Bxd4 {[%emt 0:02:30]} 22. Bxd4 {[%emt 0:00:00]} Ne4 {[%emt 0:00:30]} 23. Re3 {[%emt 0:06:00]} Bc6 {[%emt 0:04:30]} 24. Rae1 {[%emt 0:00:30]} Rd8 {[%emt 0:10:25]} 25. Bb6 {[%emt 0:11:30]} Ra8 {[%emt 0:05:25]} 26. b3 {[%emt 0:04:30]} Nd2 {[%emt 0:05:12]} 27. Rd3 {[%emt 0:05:30]} Ne4 {[%emt 0:00:12]} 28. Rde3 {[%emt 0:07:30]} Nd2 {[%emt 0:00:24]} 29. Bc5 {[%emt 0:03:30]} Rfc8 {[%emt 0:02:15]} 30. Bh3 {[%emt 0:05:53]} Rd8 {[%emt 0:00:33]} 31. Rd3 {[%emt 0:03:54]} Ne4 {[%emt 0:00:21]} 32. Bd4 {[%emt 0:02:14]} Re8 {[%emt 0:01:04]} 33. Rde3 {[%emt 0:00:23]} Ng5 {[%emt 0:00:26]} 34. Bg4 {[%emt 0:03:18]} Rxe3 {[%emt 0:00:23]} 35. Rxe3 {[%emt 0:00:22]} Ne4 {[%emt 0:00:46]} 36. Be6+ {[%emt 0:02:04]} Kh8 {[%emt 0:00:11]} 37. Re1 {[%emt 0:06:08]} Re8 {[%emt 0:00:44]} 38. Bg4 {[%emt 0:00:58]} h6 {[%emt 0:00:37]} 39. Rf1 {[%emt 0:00:46]} Kg8 {[%emt 0:00:08]} 40. Bh5 {[%emt 0:00:23]} Rf8 {[%emt 0:00:13]} 41. Rxf8+ {[%emt 0:01:16]} Kxf8 {[%emt 0:00:01]} 42. Bd1 {[%emt 0:01:47]} Kf7 {[%emt 0:00:28]} 43. Kf1 {[%emt 0:00:08]} g6 {[%emt 0:01:03]} 44. Ke2 {[%emt 0:00:09]} Nd6 {[%emt 0:01:04]} 45. Bc2 {[%emt 0:01:17]} h5 {[%emt 0:00:27]} 46. Be5 {[%emt 0:00:36]} Ne4 {[%emt 0:00:24]} 47. Ke3 {[%emt 0:00:09]} Ke6 {[%emt 0:00:17]} 48. Bh8 {[%emt 0:00:16]} g5 {[%emt 0:00:52]} 49. Bd1 {[%emt 0:00:38]} Be8 {[%emt 0:00:24]} 50. Kd4 {[%emt 0:00:52]} Nf2 {[%emt 0:00:38]} 51. Bf3 {[%emt 0:00:15]} Ne4 {[%emt 0:00:30]} 52. c4 {[%emt 0:00:08]} Nd2 {[%emt 0:00:31]} 53. Bxd5+ {[%emt 0:00:05]} Kf5 {[%emt 0:00:08]} 54. Bxb7 {[%emt 0:00:37]} Nxb3+ {[%emt 0:00:15]} 55. Kc3 {[%emt 0:00:57]} Nc1 {[%emt 0:00:04]} 56. Bxa6 {[%emt 0:00:19]} Ne2+ {[%emt 0:00:37]} 57. Kd2 {[%emt 0:00:33]} Ng1 {[%emt 0:00:19]} 58. Bc8+ {[%emt 0:00:12]} Ke4 {[%emt 0:00:18]} 59. Bb7+ {[%emt 0:00:06]} Kf5 {[%emt 0:00:01]} 60. b5 {[%emt 0:00:44]} g4 {[%emt 0:00:23]} 61. b6 {[%emt 0:00:29]} Bd7 {[%emt 0:00:22]} 62. Ke3 {[%emt 0:00:16]} Nf3 {[%emt 0:01:04]} 63. Be4+ {[%emt 0:00:06]} Ke6 {[%emt 0:00:07]} 64. Bxf3 {[%emt 0:00:13]} gxf3 {[%emt 0:00:04]} 65. b7 {[%emt 0:00:08]} f2 {[%emt 0:00:04]} 66. Kxf2 {[%emt 0:00:00]} 1-0

[Event "17th Spilimbergo Open 2019"]
[Site "Spilimbergo"]
[Date "2019.08.09"]
[Round "1.4"]
[White "Vezzosi, Paolo"]
[Black "Bosiocic, Marin"]
[Result "0-1"]
[WhiteElo "2242"]
[BlackElo "2611"]
[PlyCount "52"]
[EventDate "2019.08.09"]
[EventType "swiss"]
[EventCountry "ITA"]
[TimeControl "5400+30"]
[WhiteClock "1:10:00"]
[BlackClock "0:28:00"]

1. Nf3 {[%emt 0:00:30]} d5 {[%emt 0:00:30]} 2. c4 {[%emt 0:00:30]} d4 {[%emt 0:00:30]} 3. g3 {[%emt 0:00:30]} Nc6 {[%emt 0:00:00]} 4. Bg2 {[%emt 0:00:30]} e5 {[%emt 0:00:00]} 5. d3 {[%emt 0:00:30]} Bb4+ {[%emt 0:00:00]} 6. Bd2 {[%emt 0:01:30]} a5 {[%emt 0:00:00]} 7. O-O {[%emt 0:00:30]} Nf6 {[%emt 0:00:30]} 8. Na3 {[%emt 0:04:30]} O-O {[%emt 0:01:30]} 9. Nc2 {[%emt 0:06:30]} Re8 {[%emt 0:00:30]} 10. a3 {[%emt 0:14:30]} Bxd2 {[%emt 0:00:30]} 11. Nxd2 {[%emt 0:00:30]} Qd6 {[%emt 0:03:30]} 12. Rb1 {[%emt 0:02:30]} a4 {[%emt 0:00:30]} 13. Ne4 {[%emt 0:05:30]} Nxe4 {[%emt 0:01:30]} 14. Bxe4 {[%emt 0:00:30]} Na5 {[%emt 0:02:30]} 15. e3 {[%emt 0:04:30]} Nb3 {[%emt 0:01:30]} 16. exd4 {[%emt 0:03:30]} exd4 {[%emt 0:00:30]} 17. Nb4 {[%emt 0:00:30]} c6 {[%emt 0:04:30]} 18. Re1 {[%emt 0:01:30]} Bd7 {[%emt 0:02:30]} 19. Qh5 {[%emt 0:04:30]} g6 {[%emt 0:00:30]} 20. Qh6 {[%emt 0:00:00]} Ra5 {[%emt 0:01:30]} 21. Bf3 {[%emt 0:00:00]} Rae5 {[%emt 0:00:30]} 22. Nc2 {[%emt 0:04:30]} Bf5 {[%emt 0:06:30]} 23. Rbd1 {[%emt 0:06:30]} Nc5 {[%emt 0:00:30]} 24. Rxe5 {[%emt 0:00:30]} Rxe5 {[%emt 0:00:30]} 25. Ne1 {[%emt 0:04:30]} Qe6 {[%emt 0:01:30]} 26. Kf1 {[%emt 0:05:30]} Rxe1+ 0-1

[Event "17th Spilimbergo Open 2019"]
[Site "Spilimbergo"]
[Date "2019.08.09"]
[Round "1.5"]
[White "Basso, Pier Luigi"]
[Black "Ceschia, Ivano"]
[Result "1-0"]
[WhiteElo "2576"]
[BlackElo "2242"]
[PlyCount "67"]
[EventDate "2019.08.09"]
[EventType "swiss"]
[EventCountry "ITA"]
[TimeControl "5400+30"]
[WhiteClock "0:01:21"]
[BlackClock "0:30:00"]

1. d4 {[%emt 0:00:30]} e6 {[%emt 0:01:30]} 2. c4 {[%emt 0:00:00]} Nc6 {[%emt 0:05:30]} 3. Nf3 {[%emt 0:00:00]} Nf6 {[%emt 0:00:30]} 4. g3 {[%emt 0:00:30]} d5 {[%emt 0:16:30]} 5. Bg2 {[%emt 0:04:30]} Bb4+ {[%emt 0:06:30]} 6. Bd2 {[%emt 0:00:00]} Bxd2+ {[%emt 0:02:30]} 7. Qxd2 {[%emt 0:00:00]} O-O {[%emt 0:01:30]} 8. O-O {[%emt 0:00:30]} Qe7 {[%emt 0:01:30]} 9. Na3 {[%emt 0:08:30]} Rd8 {[%emt 0:09:30]} 10. Rfd1 {[%emt 0:01:30]} Bd7 {[%emt 0:25:30]} 11. Rac1 {[%emt 0:08:30]} Be8 {[%emt 0:01:30]} 12. e3 {[%emt 0:03:30]} a6 {[%emt 0:04:39]} 13. Qe2 {[%emt 0:03:30]} h6 {[%emt 0:03:12]} 14. Nb1 {[%emt 0:06:30]} e5 {[%emt 0:09:17]} 15. dxe5 {[%emt 0:04:30]} Nxe5 {[%emt 0:00:07]} 16. cxd5 {[%emt 0:00:30]} Nxd5 {[%emt 0:03:03]} 17. Nxe5 {[%emt 0:03:30]} Qxe5 {[%emt 0:00:03]} 18. Rd4 {[%emt 0:00:30]} Nf6 {[%emt 0:03:22]} 19. Bxb7 {[%emt 0:03:30]} Rxd4 {[%emt 0:00:40]} 20. Bxa8 {[%emt 0:00:30]} Bb5 {[%emt 0:00:52]} 21. Qc2 {[%emt 0:03:30]} Rc4 {[%emt 0:00:46]} 22. Nc3 {[%emt 0:00:00]} Ng4 {[%emt 0:01:05]} 23. Rd1 {[%emt 0:02:00]} g6 {[%emt 0:00:24]} 24. Bd5 {[%emt 0:03:30]} Qh5 {[%emt 0:00:33]} 25. h4 {[%emt 0:01:30]} Ne5 {[%emt 0:00:40]} 26. Bxc4 {[%emt 0:04:30]} Bxc4 {[%emt 0:00:28]} 27. Qe4 {[%emt 0:00:30]} Be6 {[%emt 0:00:21]} 28. Rd8+ {[%emt 0:01:30]} Kh7 {[%emt 0:00:23]} 29. Qf4 {[%emt 0:03:30]} Nf3+ {[%emt 0:00:40]} 30. Kh1 {[%emt 0:02:30]} Kg7 {[%emt 0:00:58]} 31. Ne4 {[%emt 0:01:30]} Bf5 {[%emt 0:00:23]} 32. Nd2 {[%emt 0:00:00]} Bg4 {[%emt 0:00:37]} 33. Nxf3 {[%emt 0:01:00]} Bxf3+ {[%emt 0:00:06]} 34. Kh2 1-0

[Event "17th Spilimbergo Open 2019"]
[Site "Spilimbergo"]
[Date "2019.08.09"]
[Round "1.6"]
[White "Youssoupov, Moisse"]
[Black "Moroni, Luca Jr"]
[Result "1-0"]
[WhiteElo "2241"]
[BlackElo "2572"]
[PlyCount "61"]
[EventDate "2019.08.09"]
[EventType "swiss"]
[EventCountry "ITA"]
[TimeControl "5400+30"]
[WhiteClock "0:15:37"]
[BlackClock "0:16:30"]

1. d4 {[%emt 0:00:30]} d5 {[%emt 0:00:30]} 2. Bf4 {[%emt 0:00:00]} c5 {[%emt 0:00:00]} 3. e3 {[%emt 0:00:00]} Nc6 {[%emt 0:00:00]} 4. c3 {[%emt 0:00:00]} Nf6 {[%emt 0:00:30]} 5. Nd2 {[%emt 0:00:00]} e6 {[%emt 0:00:30]} 6. Ngf3 {[%emt 0:00:30]} Bd6 {[%emt 0:00:00]} 7. Bg3 {[%emt 0:00:00]} O-O {[%emt 0:00:00]} 8. Bd3 {[%emt 0:00:00]} b6 {[%emt 0:00:30]} 9. Qe2 {[%emt 0:00:00]} Bb7 {[%emt 0:00:00]} 10. Rd1 {[%emt 0:00:00]} Re8 {[%emt 0:03:00]} 11. e4 {[%emt 0:00:30]} Be7 {[%emt 0:01:30]} 12. e5 {[%emt 0:00:00]} Nh5 {[%emt 0:00:00]} 13. a3 {[%emt 0:00:00]} a5 {[%emt 0:02:00]} 14. h4 {[%emt 0:06:30]} Nxg3 {[%emt 0:07:30]} 15. fxg3 {[%emt 0:00:00]} cxd4 {[%emt 0:01:30]} 16. cxd4 {[%emt 0:00:00]} f6 {[%emt 0:09:30]} 17. Bxh7+ {[%emt 0:41:30]} Kxh7 {[%emt 0:02:30]} 18. Ng5+ {[%emt 0:00:00]} Kg8 {[%emt 0:06:30]} 19. Qh5 {[%emt 0:01:00]} fxg5 {[%emt 0:01:30]} 20. hxg5 {[%emt 0:01:30]} Bxg5 {[%emt 0:01:30]} 21. Qh7+ {[%emt 0:03:30]} Kf8 {[%emt 0:02:30]} 22. O-O+ {[%emt 0:02:30]} Bf6 {[%emt 0:01:30]} 23. exf6 {[%emt 0:00:30]} gxf6 {[%emt 0:00:00]} 24. Qxb7 {[%emt 0:05:30]} Nxd4 {[%emt 0:06:00]} 25. Qh7 {[%emt 0:05:30]} e5 {[%emt 0:04:30]} 26. Nf3 {[%emt 0:04:30]} Nxf3+ {[%emt 0:08:30]} 27. Rxf3 {[%emt 0:00:30]} Re6 {[%emt 0:11:30]} 28. Rc1 {[%emt 0:09:37]} e4 {[%emt 0:07:30]} 29. Rf4 {[%emt 0:01:12]} Ke8 {[%emt 0:06:50]} 30. Rg4 {[%emt 0:03:11]} Re7 {[%emt 0:01:33]} 31. Qg8+ 1-0

[Event "17th Spilimbergo Open 2019"]
[Site "Spilimbergo"]
[Date "2019.08.09"]
[Round "1.7"]
[White "Brunello, Sabino"]
[Black "Sarvadh Sathiaram"]
[Result "1-0"]
[WhiteElo "2556"]
[BlackElo "2239"]
[PlyCount "75"]
[EventDate "2019.08.09"]
[EventType "swiss"]
[EventCountry "ITA"]
[TimeControl "5400+30"]
[WhiteClock "0:01:21"]
[BlackClock "0:02:20"]

1. d4 {[%emt 0:00:30]} Nf6 {[%emt 0:00:30]} 2. c4 {[%emt 0:00:00]} g6 {[%emt 0:00:00]} 3. Nc3 {[%emt 0:00:00]} d5 {[%emt 0:00:00]} 4. cxd5 {[%emt 0:02:30]} Nxd5 {[%emt 0:00:00]} 5. e4 {[%emt 0:01:30]} Nxc3 {[%emt 0:00:00]} 6. bxc3 {[%emt 0:00:30]} Bg7 {[%emt 0:00:30]} 7. Qa4+ {[%emt 0:00:00]} Qd7 {[%emt 0:02:30]} 8. Bb5 {[%emt 0:01:00]} c6 {[%emt 0:00:00]} 9. Be2 {[%emt 0:00:30]} O-O {[%emt 0:01:00]} 10. Qa3 {[%emt 0:05:30]} b6 {[%emt 0:08:30]} 11. Nf3 {[%emt 0:09:30]} Bb7 {[%emt 0:05:30]} 12. O-O {[%emt 0:06:30]} Qc7 {[%emt 0:03:30]} 13. Bg5 {[%emt 0:03:30]} Re8 {[%emt 0:04:30]} 14. Rad1 {[%emt 0:06:30]} e6 {[%emt 0:09:30]} 15. Rfe1 {[%emt 0:06:30]} Bf8 {[%emt 0:08:30]} 16. Qc1 {[%emt 0:08:30]} Nd7 {[%emt 0:02:30]} 17. h4 {[%emt 0:05:30]} f6 {[%emt 0:06:30]} 18. Bf4 {[%emt 0:03:30]} Qd8 {[%emt 0:07:30]} 19. e5 {[%emt 0:05:30]} f5 {[%emt 0:05:30]} 20. c4 {[%emt 0:05:30]} Rc8 {[%emt 0:00:30]} 21. h5 {[%emt 0:00:30]} Be7 {[%emt 0:02:30]} 22. c5 {[%emt 0:05:30]} Nf8 {[%emt 0:02:30]} 23. hxg6 {[%emt 0:00:30]} hxg6 {[%emt 0:00:30]} 24. Bc4 {[%emt 0:02:53]} Qc7 {[%emt 0:02:30]} 25. Qe3 {[%emt 0:09:44]} Rcd8 {[%emt 0:02:30]} 26. g4 {[%emt 0:01:48]} bxc5 {[%emt 0:02:30]} 27. dxc5 {[%emt 0:02:51]} Rxd1 {[%emt 0:01:30]} 28. Rxd1 {[%emt 0:00:08]} fxg4 {[%emt 0:00:30]} 29. Nh2 {[%emt 0:00:48]} Rd8 {[%emt 0:00:30]} 30. Rd6 {[%emt 0:00:14]} Bc8 {[%emt 0:16:36]} 31. Nxg4 {[%emt 0:00:07]} Nh7 {[%emt 0:03:20]} 32. Kg2 {[%emt 0:04:06]} g5 {[%emt 0:00:39]} 33. Bg3 {[%emt 0:00:19]} Rf8 {[%emt 0:02:16]} 34. Qe4 {[%emt 0:03:11]} Bxd6 {[%emt 0:00:37]} 35. exd6 {[%emt 0:00:15]} Qd7 {[%emt 0:00:22]} 36. Qg6+ {[%emt 0:00:38]} Qg7 {[%emt 0:00:15]} 37. Bxe6+ {[%emt 0:00:00]} Bxe6 {[%emt 0:00:34]} 38. Qxe6+ 1-0

[Event "17th Spilimbergo Open 2019"]
[Site "Spilimbergo"]
[Date "2019.08.09"]
[Round "1.8"]
[White "Rigo, Janos"]
[Black "Palac, Mladen"]
[Result "0-1"]
[WhiteElo "2238"]
[BlackElo "2551"]
[PlyCount "86"]
[EventDate "2019.08.09"]
[EventType "swiss"]
[EventCountry "ITA"]
[TimeControl "5400+30"]
[WhiteClock "0:44:00"]
[BlackClock "0:17:48"]

1. e4 {[%emt 0:00:30]} c5 {[%emt 0:00:30]} 2. Nf3 {[%emt 0:00:00]} d6 {[%emt 0:00:00]} 3. Bb5+ {[%emt 0:00:00]} Nd7 {[%emt 0:00:00]} 4. d4 {[%emt 0:00:30]} cxd4 {[%emt 0:00:30]} 5. Nxd4 {[%emt 0:00:30]} Ngf6 {[%emt 0:01:30]} 6. Nc3 {[%emt 0:00:30]} e6 {[%emt 0:03:30]} 7. O-O {[%emt 0:01:30]} a6 {[%emt 0:03:30]} 8. Bxd7+ {[%emt 0:00:30]} Bxd7 {[%emt 0:00:30]} 9. a4 {[%emt 0:00:30]} Be7 {[%emt 0:00:30]} 10. Be3 {[%emt 0:00:30]} O-O {[%emt 0:01:30]} 11. f3 {[%emt 0:03:30]} Rc8 {[%emt 0:00:30]} 12. Qd3 {[%emt 0:01:30]} Qc7 {[%emt 0:02:30]} 13. Rfc1 {[%emt 0:05:30]} Rfd8 {[%emt 0:02:30]} 14. Nb3 {[%emt 0:01:30]} d5 {[%emt 0:03:30]} 15. exd5 {[%emt 0:07:30]} Bc6 {[%emt 0:00:30]} 16. a5 {[%emt 0:04:30]} Nxd5 {[%emt 0:01:30]} 17. Nxd5 {[%emt 0:06:30]} Rxd5 {[%emt 0:00:30]} 18. Qe2 {[%emt 0:01:30]} Bb5 {[%emt 0:04:30]} 19. Qf2 {[%emt 0:00:30]} Bc4 {[%emt 0:00:30]} 20. Nd2 {[%emt 0:00:30]} Rxa5 {[%emt 0:02:30]} 21. b3 {[%emt 0:14:30]} Rxa1 {[%emt 0:00:30]} 22. Rxa1 {[%emt 0:00:00]} Bd5 {[%emt 0:00:30]} 23. c4 {[%emt 0:00:00]} Bc6 {[%emt 0:00:30]} 24. Bb6 {[%emt 0:00:30]} Qd7 {[%emt 0:01:30]} 25. Qe3 {[%emt 0:03:30]} h6 {[%emt 0:06:30]} 26. Nf1 {[%emt 0:01:30]} e5 {[%emt 0:06:30]} 27. Re1 {[%emt 0:04:30]} Re8 {[%emt 0:01:30]} 28. Qf2 {[%emt 0:05:30]} Bb4 {[%emt 0:00:30]} 29. Re3 {[%emt 0:01:30]} f5 {[%emt 0:02:30]} 30. f4 {[%emt 0:01:30]} exf4 {[%emt 0:04:30]} 31. Qxf4 {[%emt 0:00:30]} Be4 {[%emt 0:00:30]} 32. Qf2 {[%emt 0:01:30]} Re6 {[%emt 0:00:30]} 33. Rg3 {[%emt 0:03:30]} Bd6 {[%emt 0:02:30]} 34. Qd4 {[%emt 0:02:30]} Qe7 {[%emt 0:02:30]} 35. Rh3 {[%emt 0:01:30]} Be5 {[%emt 0:01:30]} 36. Qf2 {[%emt 0:00:30]} Qf6 {[%emt 0:01:30]} 37. Ba7 {[%emt 0:09:33]} b6 {[%emt 0:00:00]} 38. Kh1 {[%emt 0:00:28]} f4 {[%emt 0:00:00]} 39. Nd2 {[%emt 0:00:29]} Bd4 {[%emt 0:00:30]} 40. Qf1 {[%emt 0:01:16]} Qe7 {[%emt 0:00:30]} 41. Bb8 {[%emt 0:00:12]} Bc6 {[%emt 0:01:30]} 42. Qxf4 {[%emt 0:00:36]} Re1+ {[%emt 0:00:00]} 43. Nf1 {[%emt 0:00:08]} Qe2 0-1